fUSD/lending_fUSD_20251225
["ID","MTS","AMOUNT","RATE_DAILY","PERIOD"]
[399720968,1766634678284,-250.0,0.00038999,31]
[399720969,1766634678295,-300.0,0.00038999,31]
[399720970,1766634678306,-1500.0,0.00038999,31]
[399720971,1766634678318,-520.0,0.00038999,31]
[399720972,1766634678329,-200.0,0.00038999,31]
[399720973,1766634678363,-1500.0,0.00038999,31]
[399720974,1766634678378,-1500.0,0.00038999,31]
[399720975,1766634678389,-2793450.88772317,0.00039,2]
[399720976,1766634678628,-151.0,0.00032877,31]
[399720977,1766634678648,-49141.92075224,0.00039,2]
[399720978,1766634678664,-311.98467859,0.00039,2]
[399720979,1766634678677,-524.9326699,0.00039,2]
[399720980,1766634678690,-737.03722739,0.00039,2]
[399720981,1766634678905,-2965.8690525,0.000142,2]
[399720982,1766634678920,-4058.4467351,0.000142,2]
[399720983,1766634678937,-4221.4,0.000142,2]
[399720984,1766634678950,-1350.77781384,0.000142,2]
[399720985,1766634678962,-700.53782515,0.000142,2]
[399720986,1766634678975,-6437.79067512,0.000142,2]
[399720987,1766634678991,-949.22066743,0.000142,2]
[399720988,1766634679004,-355.36519998,0.000142,2]
[399720989,1766634679232,-1547.45823865,0.000142,2]
[399720990,1766634679244,-881.56,0.000142,2]
[399720991,1766634679256,-3526.8,0.000142,2]
[399720992,1766634679268,-132.11676575,0.000142,2]
[399720993,1766634679278,-157.0,0.00014417,2]
[399720994,1766634679289,-839.0,0.00014446,2]
[399720995,1766634679300,-518.22500752,0.00014474,2]
[399720996,1766634679312,-1220.77499248,0.00014474,2]
[399720997,1766634679323,-3651.8216275,0.0001528,2]
[399720998,1766634679336,-970.72771782,0.0001528,2]
[399720999,1766634679352,-6406.5498586,0.0001528,2]
[399721000,1766634679364,-882.66844591,0.0001528,2]
[399721001,1766634679376,-871.56206,0.0001528,2]
[399721002,1766634679388,-2910.41041625,0.0001528,2]
[399721003,1766634679400,-4868.48281942,0.0001528,2]
[399721004,1766634679411,-421.265,0.0001528,2]
[399721005,1766634679439,-1950.21131037,0.0001474,2]
[399721006,1766634679451,-21540.88881389,0.0001474,2]
[399721007,1766634679463,-253.52,0.0001474,2]
[399721008,1766634679477,-929.27452614,0.0001474,2]
[399721009,1766634679489,-325.0,0.0001474,2]
[399721010,1766634760675,-300.0,0.00012038,2]
[399721011,1766634760708,-1209.74243722,0.00012039,2]
[399721012,1766634760740,-1209.74243722,0.00012039,2]
[399721013,1766634760771,-1209.74243722,0.00012039,2]
[399721014,1766634760803,-931.81293946,0.00012039,2]
[399721015,1766634760880,-277.92949776,0.00012039,2]
[399721016,1766634760916,-1209.74243722,0.00012039,2]
[399721017,1766634760948,-1209.74243722,0.00012039,2]
[399721018,1766634760978,-1209.74243722,0.00012039,2]
[399721019,1766634761009,-1209.74243722,0.00012039,2]
[399721020,1766634761099,-1209.74243722,0.00012039,2]
[399721021,1766634761133,-1209.74243722,0.00012039,2]
[399721022,1766634761164,-1209.74243722,0.00012039,2]
[399721023,1766634761195,-1209.74243722,0.00012039,2]
[399721024,1766634761307,-1209.74243722,0.00012039,2]
[399721025,1766634761338,-1209.74243722,0.00012039,2]
[399721026,1766634761369,-1209.74243722,0.00012039,2]
[399721027,1766634761399,-1209.74243722,0.00012039,2]
[399721028,1766634761497,-1209.74243722,0.00012039,2]
[399721029,1766634761527,-1209.74243722,0.00012039,2]
[399721030,1766634761558,-1209.74243722,0.00012039,2]
[399721031,1766634761589,-1209.74243722,0.00012039,2]
[399721032,1766634761686,-1209.74243722,0.00012039,2]
[399721033,1766634761716,-1209.74243722,0.00012039,2]
[399721034,1766634761747,-1209.74243722,0.00012039,2]
[399721035,1766634761778,-1209.74243722,0.00012039,2]
[399721036,1766634761867,-1209.74243722,0.00012039,2]
[399721037,1766634761899,-1209.74243722,0.00012039,2]
[399721038,1766634761930,-1209.74243722,0.00012039,2]
[399721039,1766634761963,-1209.74243722,0.00012039,2]
[399721040,1766634762212,-1209.74243722,0.00012039,2]
[399721041,1766634762247,-1209.74243722,0.00012039,2]
[399721042,1766634762281,-1209.74243722,0.00012039,2]
[399721043,1766634762312,-1209.74243722,0.00012039,2]
[399721044,1766634762415,-1209.74243722,0.00012039,2]
[399721045,1766634762446,-1209.74243722,0.00012039,2]
[399721046,1766634762477,-1209.74243722,0.00012039,2]
[399721047,1766634762508,-1209.74243722,0.00012039,2]
[399721048,1766634763003,-1044.75107846,0.00012039,2]
[399721049,1766634763018,-164.99135876,0.00012039,2]
[399721050,1766634763028,-1044.75107846,0.00012039,2]
[399721051,1766634763047,-164.99135876,0.00012039,2]
[399721052,1766634763058,-157.07914348,0.00012039,2]
[399721053,1766634763708,-1052.66329374,0.00012039,2]
[399721054,1766634763741,-1209.74243722,0.00012039,2]
[399721055,1766634763774,-1209.74243722,0.00012039,2]
[399721056,1766634763805,-1209.74243722,0.00012039,2]
[399721057,1766634763886,-1209.74243722,0.00012039,2]
[399721058,1766634763916,-1209.74243722,0.00012039,2]
[399721059,1766634763947,-1209.74243722,0.00012039,2]
[399721060,1766634763977,-1209.74243722,0.00012039,2]
[399721061,1766634764089,-1209.74243722,0.00012039,2]
[399721062,1766634764123,-1209.74243722,0.00012039,2]
[399721063,1766634764156,-1209.74243722,0.00012039,2]
[399721064,1766634764188,-1209.74243722,0.00012039,2]
[399721065,1766634764288,-1209.74243722,0.00012039,2]
[399721066,1766634764323,-1209.74243722,0.00012039,2]
[399721067,1766634764356,-1209.74243722,0.00012039,2]
[399721068,1766634764388,-1209.74243722,0.00012039,2]
[399721069,1766634764490,-1209.74243722,0.00012039,2]
[399721070,1766634764522,-1209.74243722,0.00012039,2]
[399721071,1766634764555,-1209.74243722,0.00012039,2]
[399721072,1766634764587,-1209.74243722,0.00012039,2]
[399721073,1766634764661,-1209.74243722,0.00012039,2]
[399721074,1766634764693,-1209.74243722,0.00012039,2]
[399721075,1766634764722,-166.2820572,0.00012043,2]
[399721076,1766634764749,-300.0,0.00012089,2]
[399721077,1766634767436,500.0,0.00012038,2]
[399721078,1766634767513,500.0,0.00012038,2]
[399721079,1766634767572,500.0,0.00012038,2]
[399721080,1766634767627,500.0,0.00012038,2]
[399721081,1766634767680,500.0,0.00012038,2]
[399721082,1766634767731,500.0,0.00012038,2]
[399721083,1766634767794,500.0,0.00012038,2]
[399721084,1766634767850,500.0,0.00012038,2]
[399721085,1766634767901,228.47613672,0.00012038,2]
[399721086,1766634767928,271.52386328,0.00012038,2]
[399721087,1766634767987,500.0,0.00012038,2]
[399721088,1766634768040,500.0,0.00012038,2]
[399721089,1766634768099,500.0,0.00012038,2]
[399721090,1766634768160,500.0,0.00012038,2]
[399721091,1766634768216,500.0,0.00012038,2]
[399721092,1766634768267,500.0,0.00012038,2]
[399721093,1766634768312,500.0,0.00012038,2]
[399721094,1766634768356,500.0,0.00012038,2]
[399721095,1766634768401,500.0,0.00012038,2]
[399721096,1766634768786,500.0,0.00012038,2]
[399721097,1766634768860,500.0,0.00012038,2]
[399721098,1766634768903,500.0,0.00012038,2]
[399721099,1766634768945,500.0,0.00012038,2]
[399721100,1766634768987,500.0,0.00012038,2]
[399721101,1766634769035,500.0,0.00012038,2]
[399721102,1766634769085,500.0,0.00012038,2]
[399721103,1766634769129,500.0,0.00012038,2]
[399721104,1766634769175,500.0,0.00012038,2]
[399721105,1766634769221,500.0,0.00012038,2]
[399721106,1766634769267,228.48613672,0.00012038,2]
[399721107,1766634769293,271.51386328,0.00012038,2]
[399721108,1766634769338,500.0,0.00012038,2]
[399721109,1766634769384,500.0,0.00012038,2]
[399721110,1766634769427,500.0,0.00012038,2]
[399721111,1766634769472,500.0,0.00012038,2]
[399721112,1766634769512,500.0,0.00012038,2]
[399721113,1766634769556,500.0,0.00012038,2]
[399721114,1766634769599,500.0,0.00012038,2]
[399721115,1766634769642,500.0,0.00012038,2]
[399721116,1766634769685,500.0,0.00012038,2]
[399721117,1766634769739,500.0,0.00012038,2]
[399721118,1766634769801,500.0,0.00012038,2]
[399721119,1766634769888,500.0,0.00012038,2]
[399721120,1766634769966,500.0,0.00012038,2]
[399721121,1766634770014,500.0,0.00012038,2]
[399721122,1766634770060,372.78824181,0.00012038,2]
[399721123,1766634770105,500.0,0.00012038,2]
[399721124,1766634770155,500.0,0.00012038,2]
[399721125,1766634770204,500.0,0.00012038,2]
[399721126,1766634770262,500.0,0.00012038,2]
[399721127,1766634770309,355.70789491,0.00012038,2]
[399721128,1766634770337,144.29210509,0.00012038,2]
[399721129,1766634770391,-817.20716475,0.00012138,2]
[399721130,1766634772042,-200.0,0.00012138,2]
[399721131,1766634773555,-156.90710145,0.00012138,2]
[399721132,1766634775852,-412.76644796,0.00012138,2]
[399721133,1766634778015,-296.40985861,0.00012138,2]
[399721134,1766634778984,500.0,0.00012038,2]
[399721135,1766634779028,500.0,0.00012038,2]
[399721136,1766634779079,500.0,0.00012038,2]
[399721137,1766634779124,500.0,0.00012038,2]
[399721138,1766634779166,500.0,0.00012038,2]
[399721139,1766634779207,500.0,0.00012038,2]
[399721140,1766634779247,500.0,0.00012038,2]
[399721141,1766634779289,500.0,0.00012038,2]
[399721142,1766634779329,500.0,0.00012038,2]
[399721143,1766634779370,500.0,0.00012038,2]
[399721144,1766634779409,500.0,0.00012038,2]
[399721145,1766634779448,500.0,0.00012038,2]
[399721146,1766634779487,500.0,0.00012038,2]
[399721147,1766634779527,500.0,0.00012038,2]
[399721148,1766634779568,500.0,0.00012038,2]
[399721149,1766634779608,500.0,0.00012038,2]
[399721150,1766634779650,500.0,0.00012038,2]
[399721151,1766634779688,500.0,0.00012038,2]
[399721152,1766634779728,500.0,0.00012038,2]
[399721153,1766634779767,355.71789491,0.00012038,2]
[399721154,1766634779793,17.0703469,0.00012038,2]
[399721155,1766634779832,500.0,0.00012038,2]
[399721156,1766634781312,-264.84966531,0.00012138,2]
[399721157,1766634782857,-197.31864369,0.00012138,2]
[399721158,1766634786104,-195.0,0.00012138,2]
[399721159,1766634790186,-234.69882905,0.00012138,2]
[399721160,1766634792237,-163.18300334,0.00012138,2]
[399721161,1766634794219,-384.02457248,0.00012138,2]
[399721162,1766634796843,-236.26317538,0.00012138,2]
[399721163,1766634798305,-222.33141467,0.00012138,2]
[399721164,1766634800514,-181.12675976,0.00012138,2]
[399721165,1766634804772,-599.32209457,0.00012138,2]
[399721166,1766634806246,-178.09603618,0.00012138,2]
[399721167,1766634807929,-173.30744831,0.00012138,2]
[399721168,1766634809471,-224.58067817,0.00012138,2]
[399721169,1766634811550,-199.89974915,0.00012138,2]
[399721170,1766634813330,-193.94170341,0.00012138,2]
[399721171,1766634815607,-222.5891991,0.00012138,2]
[399721172,1766634816789,-316.06768111,0.00012138,2]
[399721173,1766634818938,-258.41362041,0.00012138,2]
[399721174,1766634820372,-442.46819843,0.00012138,2]
[399721175,1766634822664,-506.38792151,0.00012138,2]
[399721176,1766634826008,-249.0266582,0.00012138,2]
[399721177,1766634828160,-202.62079403,0.00012138,2]
[399721178,1766634830471,-395.91119921,0.00012138,2]
[399721179,1766634833936,-279.67423165,0.00012138,2]
[399721180,1766634836340,-269.69195794,0.00012138,2]
[399721181,1766634839530,-271.09883955,0.00012138,2]
[399721182,1766634841087,-292.42996954,0.00012138,2]
[399721183,1766634841592,150.0,0.00012137,2]
[399721184,1766634842826,-200.0,0.00012138,2]
[399721185,1766634844997,-199.46758615,0.00012138,2]
[399721186,1766634848584,-463.85887678,0.00012138,2]
[399721187,1766634852349,-152.06562339,0.00012138,2]
[399721188,1766634854922,-184.60791368,0.00012138,2]
[399721189,1766634857034,-210.46176332,0.00012138,2]
[399721190,1766634859823,-411.97544388,0.00012138,2]
[399721213,1766634861010,500.0,0.00012038,2]
[399721214,1766634861052,500.0,0.00012038,2]
[399721215,1766634861260,500.0,0.00012038,2]
[399721216,1766634861305,500.0,0.00012038,2]
[399721217,1766634861364,500.0,0.00012038,2]
[399721218,1766634861409,500.0,0.00012038,2]
[399721219,1766634861464,500.0,0.00012038,2]
[399721220,1766634861520,500.0,0.00012038,2]
[399721221,1766634861560,500.0,0.00012038,2]
[399721222,1766634861602,500.0,0.00012038,2]
[399721223,1766634861973,500.0,0.00012038,2]
[399721224,1766634862040,500.0,0.00012038,2]
[399721225,1766634862095,500.0,0.00012038,2]
[399721226,1766634862134,500.0,0.00012038,2]
[399721227,1766634862185,500.0,0.00012038,2]
[399721228,1766634862227,500.0,0.00012038,2]
[399721229,1766634862268,500.0,0.00012038,2]
[399721230,1766634862312,279.70890426,0.00012038,2]
[399721231,1766634862354,500.0,0.00012038,2]
[399721232,1766634862395,53.23074884,0.00012038,2]
[399721233,1766634862419,446.76925116,0.00012038,2]
[399721234,1766634862457,500.0,0.00012038,2]
[399721235,1766634862495,500.0,0.00012038,2]
[399721236,1766634862538,500.0,0.00012038,2]
[399721237,1766634862584,500.0,0.00012038,2]
[399721238,1766634862623,-205.13529122,0.00012138,2]
[399721239,1766634864113,-326.84110668,0.00012138,2]
[399721240,1766634866176,-287.21469149,0.00012138,2]
[399721244,1766634870986,-388.94170341,0.00012138,2]
[399721245,1766634872498,-473.08,0.00012138,2]
[399721246,1766634880884,500.0,0.00012038,2]
[399721247,1766634901145,300.0,0.00012137,2]
[399721248,1766634901191,300.0,0.00012137,2]
[399721249,1766634901230,769.0,0.00012137,2]
[399721250,1766634935772,172.37686485,0.00012137,2]
[399721251,1766634942540,500.0,0.00012137,2]
[399721252,1766634942629,364.41210047,0.00012137,2]
[399721253,1766634942725,500.0,0.00012137,2]
[399721254,1766634954399,1077.55509592,0.00014208,5]
[399721255,1766634976641,4147.45178352,0.00012038,2]
[399721256,1766634976666,10000.01,0.00012038,2]
[399721257,1766634976690,10000.01,0.00012038,2]
[399721258,1766634976714,4550.27642753,0.00012038,2]
[399721259,1766635007855,2500.0,0.00012038,2]
[399721260,1766635020060,500.0,0.00012137,2]
[399721261,1766635020119,500.0,0.00012137,2]
[399721262,1766635020161,500.0,0.00012137,2]
[399721263,1766635020324,245.02499908,0.00012137,2]
[399721264,1766635020361,327.37117045,0.00012137,2]
[399721265,1766635021538,300.0,0.00012137,2]
[399721266,1766635022335,150.0,0.00012137,2]
[399721267,1766635023295,218.3426599,0.00012137,2]
[399721268,1766635025626,207.4,0.00012138,2]
[399721269,1766635028627,1.59474304,0.00012138,2]
[399721270,1766635028653,149.40525696,0.00012138,2]
[399721271,1766635029235,151.0,0.00012138,2]
[399721272,1766635029825,151.0,0.00012138,2]
[399721273,1766635030565,500.0,0.00012138,2]
[399721274,1766635030693,166.28205718,0.00012038,2]
[399721275,1766635030891,151.0,0.00012138,2]
[399721276,1766635031162,500.0,0.00012138,2]
[399721277,1766635031519,151.0,0.00012138,2]
[399721278,1766635031782,500.0,0.00012138,2]
[399721279,1766635032129,151.0,0.00012138,2]
[399721280,1766635032400,500.0,0.00012138,2]
[399721281,1766635032710,151.0,0.00012138,2]
[399721282,1766635033002,500.0,0.00012138,2]
[399721283,1766635033319,151.0,0.00012138,2]
[399721284,1766635033614,500.0,0.00012138,2]
[399721285,1766635033920,151.0,0.00012138,2]
[399721286,1766635034103,500.0,0.00012138,2]
[399721287,1766635034202,500.0,0.00012138,2]
[399721288,1766635034526,151.0,0.00012138,2]
[399721289,1766635034689,500.0,0.00012138,2]
[399721290,1766635034790,500.0,0.00012138,2]
[399721291,1766635035394,151.0,0.00012138,2]
[399721292,1766635035437,500.0,0.00012138,2]
[399721293,1766635035533,500.0,0.00012138,2]
[399721294,1766635035770,151.0,0.00012138,2]
[399721295,1766635035901,500.0,0.00012138,2]
[399721296,1766635035995,500.0,0.00012138,2]
[399721297,1766635036366,151.0,0.00012138,2]
[399721298,1766635036523,500.0,0.00012138,2]
[399721299,1766635036624,372.32268586,0.00012138,2]
[399721300,1766635036648,127.67731414,0.00012138,2]
[399721301,1766635037007,151.0,0.00012138,2]
[399721302,1766635037141,500.0,0.00012138,2]
[399721303,1766635037776,151.0,0.00012138,2]
[399721304,1766635037814,500.0,0.00012138,2]
[399721305,1766635038381,500.0,0.00012138,2]
[399721306,1766635038419,151.0,0.00012138,2]
[399721307,1766635038980,500.0,0.00012138,2]
[399721308,1766635039017,151.0,0.00012138,2]
[399721309,1766635039568,151.0,0.00012138,2]
[399721310,1766635039605,500.0,0.00012138,2]
[399721311,1766635040307,151.0,0.00012138,2]
[399721312,1766635040345,500.0,0.00012138,2]
[399721313,1766635040750,151.0,0.00012138,2]
[399721314,1766635049551,500.0,0.00012138,2]
[399721315,1766635051708,151.0,0.00012138,2]
[399721316,1766635052308,151.0,0.00012138,2]
[399721317,1766635052898,151.0,0.00012138,2]
[399721318,1766635053494,151.0,0.00012138,2]
[399721319,1766635054115,151.0,0.00012138,2]
[399721320,1766635054723,151.0,0.00012138,2]
[399721321,1766635055345,151.0,0.00012138,2]
[399721322,1766635056018,151.0,0.00012138,2]
[399721323,1766635056610,151.0,0.00012138,2]
[399721324,1766635057220,151.0,0.00012138,2]
[399721325,1766635057820,151.0,0.00012138,2]
[399721326,1766635081423,300.0,0.00012137,2]
[399721327,1766635089383,1200.0,0.00012137,2]
[399721328,1766635111582,2154.33268586,0.00012038,2]
[399721329,1766635111607,8909.44933586,0.00012038,2]
[399721330,1766635136470,1090.56066414,0.00012038,2]
[399721331,1766635136495,1409.43933586,0.00012038,2]
[399721332,1766635201235,1200.0,0.00012137,2]
[399721333,1766635201663,150.0,0.00012137,2]
[399721334,1766635203916,249.0,0.00012138,2]
[399721335,1766635256782,151.0,0.00012138,2]
[399721336,1766635259113,165.81499052,0.00012138,2]
[399721337,1766635259794,151.0,0.00012138,2]
[399721338,1766635261026,155.45155361,0.00012138,2]
[399721339,1766635261079,258.45093416,0.00012138,2]
[399721340,1766635262330,151.0,0.00012138,2]
[399721341,1766635286048,2500.0,0.00012038,2]
[399721342,1766635292889,3458.85318585,0.00011895,2]
[399721343,1766635292913,3456.44381415,0.00011895,2]
[399721344,1766635292952,503.985,0.00011895,2]
[399721345,1766635301260,166.28205718,0.00012038,2]
[399721346,1766635321487,45042.9025,0.000226,120]
[399721347,1766635321833,300.0,0.00012137,2]
[399721348,1766635321870,151.0,0.00012138,2]
[399721349,1766635328317,659.3069,0.00012038,2]
[399721350,1766635330668,500.0,0.00012138,2]
[399721351,1766635331312,500.0,0.00012138,2]
[399721352,1766635332133,500.0,0.00012138,2]
[399721353,1766635332521,500.0,0.00012138,2]
[399721354,1766635333631,500.0,0.00012138,2]
[399721355,1766635334253,500.0,0.00012138,2]
[399721356,1766635334831,500.0,0.00012138,2]
[399721357,1766635335422,500.0,0.00012138,2]
[399721358,1766635335543,500.0,0.00012138,2]
[399721359,1766635336022,262.99222867,0.00012138,2]
[399721360,1766635336050,237.00777133,0.00012138,2]
[399721361,1766635336234,500.0,0.00012138,2]
[399721362,1766635336340,200.0,0.00012138,2]
[399721363,1766635336603,500.0,0.00012138,2]
[399721364,1766635336656,151.0,0.00012138,2]
[399721365,1766635336847,500.0,0.00012138,2]
[399721366,1766635337235,500.0,0.00012138,2]
[399721367,1766635337273,151.0,0.00012138,2]
[399721368,1766635337640,500.0,0.00012138,2]
[399721369,1766635337828,500.0,0.00012138,2]
[399721370,1766635337901,151.0,0.00012138,2]
[399721371,1766635338448,500.0,0.00012138,2]
[399721372,1766635338791,151.0,0.00012138,2]
[399721373,1766635339166,500.0,0.00012138,2]
[399721374,1766635339404,151.0,0.00012138,2]
[399721375,1766635339755,500.0,0.00012138,2]
[399721376,1766635339992,151.0,0.00012138,2]
[399721377,1766635340360,500.0,0.00012138,2]
[399721378,1766635340594,151.0,0.00012138,2]
[399721379,1766635340973,500.0,0.00012138,2]
[399721380,1766635341190,151.0,0.00012138,2]
[399721381,1766635341567,500.0,0.00012138,2]
[399721382,1766635341791,151.0,0.00012138,2]
[399721383,1766635342400,151.0,0.00012138,2]
[399721384,1766635343008,151.0,0.00012138,2]
[399721385,1766635343598,151.0,0.00012138,2]
[399721386,1766635344243,151.0,0.00012138,2]
[399721387,1766635344833,200.0,0.00012138,2]
[399721388,1766635344869,151.0,0.00012138,2]
[399721389,1766635345494,151.0,0.00012138,2]
[399721390,1766635346123,151.0,0.00012138,2]
[399721391,1766635346742,151.0,0.00012138,2]
[399721392,1766635347417,151.0,0.00012138,2]
[399721393,1766635348014,151.0,0.00012138,2]
[399721394,1766635348617,151.0,0.00012138,2]
[399721395,1766635351283,151.0,0.00012138,2]
[399721396,1766635351903,151.0,0.00012138,2]
[399721397,1766635352981,41.00222867,0.00012138,2]
[399721398,1766635353005,109.99777133,0.00012138,2]
[399721399,1766635353248,151.0,0.00012138,2]
[399721400,1766635353832,151.0,0.00012138,2]
[399721401,1766635354434,151.0,0.00012138,2]
[399721402,1766635355043,151.0,0.00012138,2]
[399721403,1766635355808,151.0,0.00012138,2]
[399721404,1766635356399,151.0,0.00012138,2]
[399721405,1766635357041,151.0,0.00012138,2]
[399721406,1766635357648,151.0,0.00012138,2]
[399721407,1766635362844,8682.01222867,0.00012038,2]
[399721408,1766635362866,10000.01,0.00012038,2]
[399721409,1766635362888,10000.01,0.00012038,2]
[399721410,1766635362910,2642.48684083,0.00012038,2]
[399721411,1766635381634,300.0,0.00012137,2]
[399721412,1766635389249,205.0,0.00012137,2]
[399721413,1766635435724,2500.0,0.00012038,2]
[399721414,1766635452595,500.0,0.00012137,2]
[399721415,1766635452691,152.83986193,0.00012137,2]
[399721416,1766635452757,492.18130475,0.00012137,2]
[399721417,1766635454546,229.15981931,0.00012137,2]
[399721418,1766635501562,300.0,0.00012137,2]
[399721419,1766635501641,893.0,0.00012137,2]
[399721420,1766635557360,151.0,0.00012138,2]
[399721421,1766635565937,160.41187352,0.00012137,2]
[399721422,1766635585127,1033.1663,0.00012038,2]
[399721423,1766635586350,166.28205718,0.00012038,2]
[399721424,1766635592815,274.48194248,0.00012137,2]
[399721425,1766635592839,225.51805752,0.00012137,2]
[399721426,1766635592892,194.52691332,0.00012137,2]
[399721428,1766635622001,9579.96502916,0.00012038,2]
[399721429,1766635622024,377.43879046,0.00012038,2]
[399721430,1766635624953,151.0,0.00012138,2]
[399721431,1766635624996,200.0,0.00012138,2]
[399721432,1766635625525,151.0,0.00012138,2]
[399721433,1766635626114,252.50040685,0.00012138,2]
[399721434,1766635634577,500.0,0.00012138,2]
[399721435,1766635635152,500.0,0.00012138,2]
[399721436,1766635635753,500.0,0.00012138,2]
[399721437,1766635635919,500.0,0.00012138,2]
[399721438,1766635636416,500.0,0.00012138,2]
[399721439,1766635636538,500.0,0.00012138,2]
[399721440,1766635637015,500.0,0.00012138,2]
[399721441,1766635637100,500.0,0.00012138,2]
[399721442,1766635637662,500.0,0.00012138,2]
[399721443,1766635637703,500.0,0.00012138,2]
[399721444,1766635638265,500.0,0.00012138,2]
[399721445,1766635638334,500.0,0.00012138,2]
[399721446,1766635638851,500.0,0.00012138,2]
[399721447,1766635638918,500.0,0.00012138,2]
[399721448,1766635639459,500.0,0.00012138,2]
[399721449,1766635639526,500.0,0.00012138,2]
[399721450,1766635640093,500.0,0.00012138,2]
[399721451,1766635640134,368.07080269,0.00012138,2]
[399721452,1766635640158,131.92919731,0.00012138,2]
[399721453,1766635640670,500.0,0.00012138,2]
[399721454,1766635640714,500.0,0.00012138,2]
[399721455,1766635641321,500.0,0.00012138,2]
[399721456,1766635641921,500.0,0.00012138,2]
[399721457,1766635651235,151.0,0.00012138,2]
[399721458,1766635651845,151.0,0.00012138,2]
[399721459,1766635652444,151.0,0.00012138,2]
[399721460,1766635653028,151.0,0.00012138,2]
[399721461,1766635653623,151.0,0.00012138,2]
[399721462,1766635654222,151.0,0.00012138,2]
[399721463,1766635654873,151.0,0.00012138,2]
[399721464,1766635655440,151.0,0.00012138,2]
[399721465,1766635656049,151.0,0.00012138,2]
[399721466,1766635656649,151.0,0.00012138,2]
[399721467,1766635657269,151.0,0.00012138,2]
[399721468,1766635673876,6207.08080269,0.00012038,2]
[399721469,1766635673904,10000.01,0.00012038,2]
[399721470,1766635673931,10000.01,0.00012038,2]
[399721471,1766635673958,10000.01,0.00012038,2]
[399721472,1766635673985,10000.01,0.00012038,2]
[399721473,1766635674013,10000.01,0.00012038,2]
[399721474,1766635674041,10000.01,0.00012038,2]
[399721475,1766635674069,10000.01,0.00012038,2]
[399721476,1766635674103,10000.01,0.00012038,2]
[399721477,1766635686546,-5820.07837983,0.00012038,2]
[399721478,1766635686563,-10000.01,0.00012038,2]
[399721479,1766635688517,-10000.01,0.00012038,2]
[399721480,1766635688649,-10000.01,0.00012038,2]
[399721481,1766635688750,-10000.01,0.00012038,2]
[399721482,1766635688856,-10000.01,0.00012038,2]
[399721483,1766635688987,-10000.01,0.00012038,2]
[399721484,1766635689108,-10000.01,0.00012038,2]
[399721485,1766635689211,-10000.01,0.00012038,2]
[399721486,1766635689310,-10000.01,0.00012038,2]
[399721487,1766635689436,-10000.01,0.00012038,2]
[399721488,1766635691608,-10000.01,0.00012038,2]
[399721489,1766635694728,-10000.01,0.00012038,2]
[399721490,1766635694743,-10000.01,0.00012038,2]
[399721491,1766635694768,-10000.01,0.00012038,2]
[399721492,1766635694840,-10000.01,0.00012038,2]
[399721493,1766635694940,-10000.01,0.00012038,2]